[Event "12th KIIT International 2019"]
[Site "Odisha"]
[Date "2019.06.07"]
[Round "10.11"]
[White "Srihari L R"]
[Black "Rahman, Ziaur"]
[Result "0-1"]
[ECO "E90"]
[WhiteElo "2214"]
[BlackElo "2481"]
[Annotator "ChessBase"]
[PlyCount "120"]
[EventDate "2019.05.31"]
[EventType "swiss"]
[EventCountry "IND"]
[SourceTitle "playchess.com"]
[Source "ChessBase"]
[SourceQuality "1"]
[TimeControl "5400+30"]

1. d4 {[%emt 1:30:30]} g6 {[%emt 0:00:57]} 2. c4 {[%emt 0:00:00]} Bg7 {[%emt 0:00:05]} 3. Nc3 {[%emt 0:00:00]} d6 {[%emt 0:01:15]} 4. e4 {[%emt 0:00:00]} Nf6 {[%emt 0:00:29]} 5. h3 {[%emt 0:00:00]} O-O {[%emt 0:00:28]} 6. Bg5 {[%emt 0:00:00]} Qe8 {[%emt 0:05:33]} 7. Be2 {[%emt 0:00:00]} e5 {[%emt 0:01:29]} 8. d5 {[%emt 0:00:00]} Na6 {[%emt 0:00:43]} 9. Nf3 {[%emt 0:00:00]} Nh5 {[%emt 0:00:46]} 10. g3 {[%emt 0:00:00]} f5 {[%emt 0:12:38]} 11. Nd2 {[%emt 0:00:00]} h6 {[%emt 0:08:28]} 12. Bh4 {[%emt 0:00:00]} Nf6 {[%emt 0:03:53]} 13. g4 {[%emt 0:00:00]} g5 {[%emt 0:05:48]} 14. Bg3 {[%emt 0:00:00]} f4 {[%emt 0:00:12]} 15. Bh2 {[%emt 0:00:00]} h5 {[%emt 0:04:53]} 16. f3 {[%emt 0:00:00]} Kf7 {[%emt 0:02:10]} 17. Rf1 {[%emt 0:00:00]} Rh8 {[%emt 0:08:33]} 18. Bg1 {[%emt 0:00:00]} Bf8 {[%emt 0:00:48]} 19. a3 {[%emt 0:00:00]} hxg4 {[%emt 0:06:11]} 20. hxg4 {[%emt 0:00:00]} Be7 {[%emt 0:00:37]} 21. b4 {[%emt 0:00:00]} Rh3 {[%emt 0:03:04]} 22. Qc2 {[%emt 0:00:00]} Kg7 {[%emt 0:01:37]} 23. Nb3 {[%emt 0:00:00]} c6 {[%emt 0:03:03]} 24. O-O-O {[%emt 0:01:25]} Nc7 {[%emt 0:02:00]} 25. Kb2 {[%emt 0:02:44]} Bd7 {[%emt 0:01:53]} 26. Rc1 {[%emt 0:03:52]} b6 {[%emt 0:10:13]} 27. dxc6 {[%emt 0:01:04]} Bxc6 {[%emt 0:00:02]} 28. Nd5 {[%emt 0:00:11]} Rc8 {[%emt 0:01:13]} 29. b5 {[%emt 0:01:21]} Bd7 {[%emt 0:00:57]} 30. Nxc7 {[%emt 0:02:14]} Rxc7 {[%emt 0:00:05]} 31. Qd2 {[%emt 0:00:43]} Be6 {[%emt 0:01:33]} 32. a4 {[%emt 0:01:09]} Nd7 {[%emt 0:04:00]} 33. Rc2 {[%emt 0:00:40]} Qf7 {[%emt 0:00:19]} 34. Rfc1 {[%emt 0:00:33]} Rh8 {[%emt 0:00:23]} 35. Qd3 {[%emt 0:00:31]} Rd8 {[%emt 0:00:47]} 36. Qc3 {[%emt 0:00:30]} Rdc8 {[%emt 0:00:46]} 37. Qd3 {[%emt 0:00:17]} Qf8 {[%emt 0:00:38]} 38. Ka2 {[%emt 0:00:35]} Bf7 {[%emt 0:00:29]} 39. Bf2 {[%emt 0:00:18]} Nf6 {[%emt 0:00:41]} 40. Kb1 {[%emt 0:00:50]} Bg6 {[%emt 0:00:39]} 41. Be1 {[%emt 0:00:30]} Rd7 {[%emt 0:00:25]} 42. Ka2 {[%emt 0:00:25]} Rcc7 {[%emt 0:01:01]} 43. Bf1 {[%emt 0:00:35]} Qd8 {[%emt 0:01:03]} 44. Qe2 {[%emt 0:00:27]} Bf8 {[%emt 0:00:38]} 45. Nd2 {[%emt 0:00:30]} Qa8 {[%emt 0:01:49]} 46. Bg2 {[%emt 0:00:30]} a6 {[%emt 0:00:28]} 47. Kb1 {[%emt 0:00:33]} axb5 {[%emt 0:00:38]} 48. axb5 {[%emt 0:00:27]} Ra7 {[%emt 0:00:32]} 49. Nb3 {[%emt 0:00:07]} Ra3 {[%emt 0:00:36]} 50. Rb2 {[%emt 0:00:56]} Qa4 {[%emt 0:01:46]} 51. Qd3 {[%emt 0:00:25]} Rc7 {[%emt 0:02:20]} 52. Qc3 {[%emt 0:00:35]} Nd7 {[%emt 0:01:02]} 53. Bf2 {[%emt 0:00:32]} d5 {[%emt 0:00:24]} 54. c5 {[%emt 0:00:28]} Bxc5 {[%emt 0:00:40]} 55. Bxc5 {[%emt 0:00:21]} Rxc5 {[%emt 0:00:30]} 56. Qd3 {[%emt 0:00:24]} Rxb5 {[%emt 0:00:32]} 57. Kc2 {[%emt 0:00:44]} Raxb3 {[%emt 0:00:49]} 58. Rxb3 {[%emt 0:00:25]} Qa2+ {[%emt 0:00:25]} 59. Kd1 {[%emt 0:00:06]} Rxb3 {[%emt 0:01:12]} 60. Qxd5 {[%emt 0:00:05]} Bf7 {[%emt 0:00:06]} 0-1

[Event "12th KIIT International 2019"]
[Site "Odisha"]
[Date "2019.06.07"]
[Round "10.12"]
[White "Vasquez Schroeder, Rodrigo"]
[Black "Deshmukh, Anup"]
[Result "1-0"]
[ECO "C63"]
[WhiteElo "2476"]
[BlackElo "2229"]
[Annotator "ChessBase"]
[PlyCount "151"]
[EventDate "2019.05.31"]
[EventType "swiss"]
[EventCountry "IND"]
[SourceTitle "playchess.com"]
[Source "ChessBase"]
[SourceQuality "1"]
[TimeControl "5400+30"]

1. e4 {[%emt 0:00:00]} e5 {[%emt 0:00:00]} 2. Nf3 {[%emt 0:00:00]} Nc6 {[%emt 0:00:02]} 3. Bb5 {[%emt 0:00:00]} f5 {[%emt 0:00:57]} 4. d3 {[%emt 0:00:02]} fxe4 {[%emt 0:00:39]} 5. dxe4 {[%emt 0:00:08]} Nf6 {[%emt 0:00:13]} 6. O-O {[%emt 0:00:09]} d6 {[%emt 0:00:52]} 7. Nc3 {[%emt 0:05:00]} Be7 {[%emt 0:02:09]} 8. Qd3 {[%emt 0:03:25]} a6 {[%emt 0:09:05]} 9. Bc4 {[%emt 0:03:56]} b5 {[%emt 0:03:08]} 10. Bb3 {[%emt 0:00:24]} Na5 {[%emt 0:02:25]} 11. Bg5 {[%emt 0:01:00]} Nxb3 {[%emt 0:08:23]} 12. axb3 {[%emt 0:00:07]} Rb8 {[%emt 0:01:12]} 13. Bxf6 {[%emt 0:03:31]} Bxf6 {[%emt 0:00:20]} 14. Nd5 {[%emt 0:00:08]} O-O {[%emt 0:01:03]} 15. h3 {[%emt 1:19:40]} Qd7 {[%emt 0:04:42]} 16. Nxf6+ {[%emt 0:00:00]} Rxf6 {[%emt 0:00:54]} 17. Nd2 {[%emt 0:00:00]} Qf7 {[%emt 0:04:57]} 18. b4 {[%emt 0:00:00]} Bb7 {[%emt 0:04:15]} 19. f3 {[%emt 0:00:00]} Rf8 {[%emt 0:02:01]} 20. Qe3 {[%emt 0:00:00]} Bc8 {[%emt 0:00:56]} 21. Rf2 {[%emt 0:00:00]} Qh5 {[%emt 0:00:44]} 22. Kf1 {[%emt 0:00:00]} Qh4 {[%emt 0:02:38]} 23. Ke2 {[%emt 0:00:00]} h6 {[%emt 0:04:28]} 24. Re1 {[%emt 0:00:00]} Kh7 {[%emt 0:03:25]} 25. Kd1 {[%emt 0:00:00]} Be6 {[%emt 0:03:26]} 26. Rfe2 {[%emt 0:00:00]} Ra8 {[%emt 0:00:41]} 27. Qa3 {[%emt 0:00:00]} Rff8 {[%emt 0:04:13]} 28. Qa5 {[%emt 0:00:00]} Qe7 {[%emt 0:03:16]} 29. Nf1 {[%emt 0:00:00]} Bc4 {[%emt 0:07:28]} 30. Rd2 {[%emt 0:00:00]} Bxf1 {[%emt 0:01:02]} 31. Rxf1 {[%emt 0:00:00]} Rfc8 {[%emt 0:00:11]} 32. Rff2 {[%emt 0:00:00]} Qe6 {[%emt 0:01:09]} 33. Rd3 {[%emt 0:00:00]} Qf7 {[%emt 0:08:10]} 34. Kc1 {[%emt 0:00:00]} Qf4+ {[%emt 0:01:34]} 35. Rfd2 {[%emt 0:00:00]} Qh2 {[%emt 0:00:36]} 36. Re2 {[%emt 0:00:00]} Rab8 {[%emt 0:02:10]} 37. Rd1 {[%emt 0:00:00]} Rb6 {[%emt 0:00:26]} 38. Kb1 {[%emt 0:00:00]} Rc6 {[%emt 0:01:18]} 39. b3 {[%emt 0:00:00]} Rf8 {[%emt 0:01:05]} 40. Rd3 {[%emt 0:00:00]} Rf6 {[%emt 0:01:13]} 41. Kb2 {[%emt 0:00:00]} Rg6 {[%emt 0:00:25]} 42. Rdd2 {[%emt 0:00:00]} Qg1 {[%emt 0:00:24]} 43. Qa1 {[%emt 0:00:00]} Qb6 {[%emt 0:00:40]} 44. Rd3 {[%emt 0:00:00]} Rf6 {[%emt 0:00:49]} 45. Qe1 {[%emt 0:00:00]} Qb7 {[%emt 0:00:41]} 46. Red2 {[%emt 0:00:00]} Rf8 {[%emt 0:00:45]} 47. Rd1 {[%emt 0:00:00]} Ra8 {[%emt 0:04:11]} 48. Ra1 {[%emt 0:00:00]} Rb6 {[%emt 0:00:41]} 49. Qd2 {[%emt 0:00:00]} Qb8 {[%emt 0:01:27]} 50. Rd5 {[%emt 0:00:00]} Qf8 {[%emt 0:00:45]} 51. Qc3 {[%emt 0:00:00]} Qe7 {[%emt 0:00:31]} 52. Qd2 {[%emt 0:00:00]} Qf8 {[%emt 0:00:25]} 53. Rd3 {[%emt 0:00:00]} Rc8 {[%emt 0:02:01]} 54. Rd1 {[%emt 0:00:00]} Qf6 {[%emt 0:00:55]} 55. Rd5 {[%emt 0:00:00]} Ra8 {[%emt 0:00:35]} 56. Qc3 {[%emt 0:00:00]} Qe7 {[%emt 0:00:32]} 57. Qd2 {[%emt 0:00:00]} Qf6 {[%emt 0:00:46]} 58. Rf1 {[%emt 0:00:00]} Rf8 {[%emt 0:00:51]} 59. Rd3 {[%emt 0:00:00]} Qe7 {[%emt 0:00:23]} 60. Rd1 {[%emt 0:00:00]} Rc8 {[%emt 0:00:53]} 61. g3 {[%emt 0:00:00]} Rf8 {[%emt 0:01:22]} 62. Qe3 {[%emt 0:00:00]} Rf6 {[%emt 0:00:32]} 63. Rc3 {[%emt 0:00:00]} Rb7 {[%emt 0:00:24]} 64. h4 {[%emt 0:00:00]} Qf7 {[%emt 0:00:20]} 65. Rf1 {[%emt 0:00:00]} Qg6 {[%emt 0:01:18]} 66. f4 {[%emt 0:00:00]} Qg4 {[%emt 0:01:22]} 67. f5 {[%emt 0:00:00]} Rf7 {[%emt 0:01:12]} 68. Rf2 {[%emt 0:00:00]} a5 {[%emt 0:00:45]} 69. bxa5 {[%emt 0:00:00]} c5 {[%emt 0:00:11]} 70. Rd3 {[%emt 0:00:00]} Ra7 {[%emt 0:00:33]} 71. Qe2 {[%emt 0:00:00]} Qh3 {[%emt 0:00:23]} 72. Rh2 {[%emt 0:00:00]} Qxh2 {[%emt 0:00:35]} 73. Qxh2 {[%emt 0:00:00]} Rxa5 {[%emt 0:00:08]} 74. Rxd6 {[%emt 0:00:00]} b4 {[%emt 0:00:21]} 75. Qe2 {[%emt 0:00:31]} Rfa7 {[%emt 0:00:08]} 76. Qg4 {[%emt 0:00:45]} 1-0

[Event "12th KIIT International 2019"]
[Site "Odisha"]
[Date "2019.06.07"]
[Round "10.13"]
[White "Baivab Mishra"]
[Black "Lugovskoy, Maxim"]
[Result "1/2-1/2"]
[ECO "E04"]
[WhiteElo "2209"]
[BlackElo "2451"]
[Annotator "ChessBase"]
[PlyCount "126"]
[EventDate "2019.05.31"]
[EventType "swiss"]
[EventCountry "IND"]
[SourceTitle "playchess.com"]
[Source "ChessBase"]
[SourceQuality "1"]
[TimeControl "5400+30"]

1. Nf3 {[%emt 0:05:46]} d5 {[%emt 0:00:00]} 2. d4 {[%emt 0:00:27]} Nf6 {[%emt 0:00:00]} 3. c4 {[%emt 0:00:48]} e6 {[%emt 0:00:00]} 4. g3 {[%emt 0:01:52]} dxc4 {[%emt 0:00:08]} 5. Bg2 {[%emt 0:01:03]} a6 {[%emt 0:00:18]} 6. O-O {[%emt 0:01:29]} Nc6 {[%emt 0:00:18]} 7. e3 {[%emt 0:03:57]} Rb8 {[%emt 0:01:22]} 8. Nfd2 {[%emt 0:01:31]} e5 {[%emt 0:08:17]} 9. Nxc4 {[%emt 0:19:39]} exd4 {[%emt 0:00:40]} 10. Bxc6+ {[%emt 0:02:57]} bxc6 {[%emt 0:00:07]} 11. Qxd4 {[%emt 0:00:03]} Qxd4 {[%emt 0:03:37]} 12. exd4 {[%emt 0:00:03]} Be6 {[%emt 0:03:27]} 13. b3 {[%emt 0:05:11]} c5 {[%emt 0:00:20]} 14. dxc5 {[%emt 0:13:47]} Bxc5 {[%emt 0:00:16]} 15. Ba3 {[%emt 0:01:45]} Bd4 {[%emt 0:02:39]} 16. Bb2 {[%emt 0:00:28]} Bxb2 {[%emt 0:01:07]} 17. Nxb2 {[%emt 0:00:02]} h5 {[%emt 0:05:45]} 18. Nc3 {[%emt 0:05:53]} h4 {[%emt 0:00:17]} 19. Nd3 {[%emt 0:01:19]} Kf8 {[%emt 0:06:41]} 20. Nf4 {[%emt 0:06:10]} Bf5 {[%emt 0:01:07]} 21. Nfd5 {[%emt 0:00:35]} Nd7 {[%emt 0:06:21]} 22. Rfe1 {[%emt 0:02:04]} c6 {[%emt 0:00:42]} 23. Ne3 {[%emt 0:01:26]} Be6 {[%emt 0:00:04]} 24. Nc2 {[%emt 0:01:43]} c5 {[%emt 0:02:29]} 25. Rad1 {[%emt 0:00:09]} Nf6 {[%emt 0:01:42]} 26. Ne3 {[%emt 0:00:44]} g6 {[%emt 0:00:34]} 27. Ned5 {[%emt 0:03:01]} Nxd5 {[%emt 0:01:14]} 28. Nxd5 {[%emt 0:00:01]} Kg7 {[%emt 0:00:37]} 29. Nf4 {[%emt 0:02:16]} Bg4 {[%emt 0:04:58]} 30. Rc1 {[%emt 0:02:29]} hxg3 {[%emt 0:00:45]} 31. fxg3 {[%emt 0:00:34]} Rbd8 {[%emt 0:00:06]} 32. Rc2 {[%emt 0:01:42]} Rd7 {[%emt 0:00:12]} 33. Re5 {[%emt 0:05:09]} Rd1+ {[%emt 0:00:34]} 34. Kg2 {[%emt 0:00:06]} Rhd8 {[%emt 0:08:26]} 35. Rf2 {[%emt 0:01:37]} Ra1 {[%emt 0:08:57]} 36. h3 {[%emt 0:08:15]} Bc8 {[%emt 0:00:01]} 37. g4 {[%emt 0:00:06]} Rd7 {[%emt 0:05:52]} 38. Rxc5 {[%emt 0:00:57]} Bb7+ {[%emt 0:00:01]} 39. Kg3 {[%emt 0:00:40]} Re7 {[%emt 0:01:41]} 40. Rc3 {[%emt 0:00:26]} Kh6 {[%emt 0:01:28]} 41. Ng2 {[%emt 0:01:14]} Rd1 {[%emt 0:01:23]} 42. a4 {[%emt 0:00:38]} a5 {[%emt 0:00:10]} 43. Ne3 {[%emt 0:00:27]} Rg1+ {[%emt 0:01:05]} 44. Kh2 {[%emt 0:00:10]} Rb1 {[%emt 0:00:21]} 45. Kg3 {[%emt 0:00:14]} Ba8 {[%emt 0:00:42]} 46. Nc4 {[%emt 0:01:27]} Ree1 {[%emt 0:00:41]} 47. Ne3 {[%emt 0:00:31]} Kg7 {[%emt 0:01:32]} 48. h4 {[%emt 0:00:33]} Ra1 {[%emt 0:03:35]} 49. Kf4 {[%emt 0:00:14]} Rab1 {[%emt 0:00:18]} 50. Kg3 {[%emt 0:00:23]} Be4 {[%emt 0:01:55]} 51. Kf4 {[%emt 0:00:35]} Bb7 {[%emt 0:00:06]} 52. Rd2 {[%emt 0:00:42]} Bh1 {[%emt 0:01:43]} 53. Rd7 {[%emt 0:00:30]} Re2 {[%emt 0:00:18]} 54. Rcc7 {[%emt 0:00:35]} Rf2+ {[%emt 0:00:05]} 55. Kg5 {[%emt 0:00:30]} Re1 {[%emt 0:04:40]} 56. Nf5+ {[%emt 0:00:16]} gxf5 {[%emt 0:00:01]} 57. Rxf7+ {[%emt 0:00:07]} Kg8 {[%emt 0:00:01]} 58. Rg7+ {[%emt 0:00:20]} Kf8 {[%emt 0:00:11]} 59. Rcf7+ {[%emt 0:00:36]} Ke8 {[%emt 0:00:04]} 60. Rc7 {[%emt 0:01:01]} Kd8 {[%emt 0:00:47]} 61. Rgd7+ {[%emt 0:00:08]} Ke8 {[%emt 0:00:01]} 62. Rg7 {[%emt 0:00:57]} Kd8 {[%emt 0:00:10]} 63. Rgd7+ {[%emt 0:00:25]} Ke8 {[%emt 0:00:01]} 1/2-1/2

[Event "12th KIIT International 2019"]
[Site "Odisha"]
[Date "2019.06.07"]
[Round "10.14"]
[White "Khusenkhojaev, Muhammad"]
[Black "Aaryan Varshney"]
[Result "1/2-1/2"]
[ECO "E15"]
[WhiteElo "2446"]
[BlackElo "2196"]
[Annotator "ChessBase"]
[PlyCount "204"]
[EventDate "2019.05.31"]
[EventType "swiss"]
[EventCountry "IND"]
[SourceTitle "playchess.com"]
[Source "ChessBase"]
[SourceQuality "1"]
[TimeControl "5400+30"]

1. Nf3 {[%emt 0:06:51]} Nf6 {[%emt 0:00:00]} 2. c4 {[%emt 0:00:04]} e6 {[%emt 0:00:00]} 3. g3 {[%emt 0:00:04]} d5 {[%emt 0:00:00]} 4. d4 {[%emt 0:00:04]} Bb4+ {[%emt 0:00:00]} 5. Bd2 {[%emt 0:00:04]} Be7 {[%emt 0:00:00]} 6. Bg2 {[%emt 0:00:04]} O-O {[%emt 0:00:00]} 7. O-O {[%emt 0:00:08]} c6 {[%emt 0:00:00]} 8. Qc2 {[%emt 0:00:06]} b6 {[%emt 0:00:04]} 9. Rd1 {[%emt 0:00:24]} Nbd7 {[%emt 0:00:06]} 10. b3 {[%emt 0:00:21]} Ba6 {[%emt 0:00:07]} 11. a4 {[%emt 0:00:21]} h6 {[%emt 0:00:07]} 12. Be1 {[%emt 0:11:46]} Re8 {[%emt 0:05:44]} 13. a5 {[%emt 0:06:06]} Qc8 {[%emt 0:02:17]} 14. Nbd2 {[%emt 0:04:19]} c5 {[%emt 0:02:34]} 15. e4 {[%emt 0:01:23]} dxc4 {[%emt 0:13:08]} 16. Nxc4 {[%emt 0:06:02]} cxd4 {[%emt 0:01:32]} 17. Nxd4 {[%emt 0:01:19]} bxa5 {[%emt 0:10:51]} 18. Nxa5 {[%emt 0:05:52]} Qxc2 {[%emt 0:02:14]} 19. Nxc2 {[%emt 0:07:23]} Rac8 {[%emt 0:01:07]} 20. Nd4 {[%emt 0:04:17]} Ne5 {[%emt 0:03:19]} 21. b4 {[%emt 0:02:48]} Nd3 {[%emt 0:22:16]} 22. Nac6 {[%emt 0:04:24]} Nxe1 {[%emt 0:01:16]} 23. Rxe1 {[%emt 0:03:20]} Bb7 {[%emt 0:04:55]} 24. Nxe7+ {[%emt 0:00:13]} Rxe7 {[%emt 0:00:01]} 25. Rxa7 {[%emt 0:00:12]} Rc4 {[%emt 0:09:48]} 26. e5 {[%emt 0:00:13]} Nd5 {[%emt 0:02:33]} 27. Bxd5 {[%emt 0:04:13]} exd5 {[%emt 0:00:09]} 28. Nf5 {[%emt 0:00:52]} Rec7 {[%emt 0:03:22]} 29. b5 {[%emt 0:00:57]} d4 {[%emt 0:00:50]} 30. b6 {[%emt 0:04:29]} Rc1 {[%emt 0:01:16]} 31. Rf1 {[%emt 0:00:31]} Rxf1+ {[%emt 0:01:24]} 32. Kxf1 {[%emt 0:00:05]} Rc1+ {[%emt 0:00:04]} 33. Ke2 {[%emt 0:00:06]} Be4 {[%emt 0:02:12]} 34. Nxd4 {[%emt 0:01:10]} Rb1 {[%emt 0:00:22]} 35. Ke3 {[%emt 0:01:14]} Bg2 {[%emt 0:01:01]} 36. e6 {[%emt 0:01:07]} fxe6 {[%emt 0:00:14]} 37. Re7 {[%emt 0:02:04]} Rxb6 {[%emt 0:00:24]} 38. Nxe6 {[%emt 0:00:06]} Rb7 {[%emt 0:03:50]} 39. Rxb7 {[%emt 0:00:43]} Bxb7 {[%emt 0:00:02]} 40. Kd4 {[%emt 0:01:08]} Bc8 {[%emt 0:00:10]} 41. Ke5 {[%emt 0:00:07]} Kf7 {[%emt 0:00:06]} 42. Nd8+ {[%emt 0:02:01]} Ke7 {[%emt 0:00:07]} 43. Nc6+ {[%emt 0:00:06]} Kf7 {[%emt 0:00:12]} 44. f4 {[%emt 0:00:05]} Bd7 {[%emt 0:02:23]} 45. Nd4 {[%emt 0:00:08]} g6 {[%emt 0:00:18]} 46. h4 {[%emt 0:02:31]} Bg4 {[%emt 0:01:03]} 47. Nb5 {[%emt 0:00:15]} Kg7 {[%emt 0:10:02]} 48. Nd6 {[%emt 0:00:11]} h5 {[%emt 0:00:00]} 49. Ne8+ {[%emt 0:02:42]} Kf7 {[%emt 0:00:00]} 50. Nf6 {[%emt 0:00:06]} Bc8 {[%emt 0:00:00]} 51. Ne4 {[%emt 0:00:48]} Bg4 {[%emt 0:00:00]} 52. Nd6+ {[%emt 0:01:48]} Kg7 {[%emt 0:00:00]} 53. f5 {[%emt 0:00:24]} gxf5 {[%emt 0:00:00]} 54. Nxf5+ {[%emt 0:00:04]} Kg6 {[%emt 0:00:00]} 55. Ne7+ {[%emt 0:00:06]} Kf7 {[%emt 0:00:00]} 56. Nd5 {[%emt 0:00:05]} Bf3 {[%emt 0:00:00]} 57. Nc3 {[%emt 0:04:54]} Kg6 {[%emt 0:00:00]} 58. Nb5 {[%emt 0:00:36]} Bg4 {[%emt 0:00:00]} 59. Nd4 {[%emt 0:00:07]} Bd7 {[%emt 0:00:00]} 60. Ne6 {[%emt 0:00:11]} Kf7 {[%emt 0:00:00]} 61. Nc7 {[%emt 0:01:32]} Bg4 {[%emt 0:00:00]} 62. Nd5 {[%emt 0:00:15]} Bf3 {[%emt 0:00:00]} 63. Ne3 {[%emt 0:01:29]} Kg6 {[%emt 0:00:00]} 64. Nf5 {[%emt 0:00:39]} Bg4 {[%emt 0:00:00]} 65. Nd6 {[%emt 0:00:20]} Bd7 {[%emt 0:00:00]} 66. Nc4 {[%emt 0:00:17]} Bg4 {[%emt 0:00:00]} 67. Ne3 {[%emt 0:01:26]} Bh3 {[%emt 0:00:00]} 68. Kf4 {[%emt 0:00:24]} Be6 {[%emt 0:00:00]} 69. Ke5 {[%emt 0:00:39]} Bh3 {[%emt 0:00:00]} 70. Nd5 {[%emt 0:00:04]} Bg4 {[%emt 0:00:12]} 71. Kd6 {[%emt 0:00:55]} Bf3 {[%emt 0:00:49]} 72. Ne3 {[%emt 0:03:20]} Kf6 {[%emt 0:00:09]} 73. Nc4 {[%emt 0:00:18]} Bg4 {[%emt 0:02:10]} 74. Ne3 {[%emt 0:01:42]} Be6 {[%emt 0:01:27]} 75. Nc2 {[%emt 0:00:07]} Bf5 {[%emt 0:00:45]} 76. Nd4 {[%emt 0:00:05]} Bg4 {[%emt 0:00:14]} 77. Kd5 {[%emt 0:00:05]} Bd7 {[%emt 0:00:16]} 78. Ke4 {[%emt 0:00:07]} Bg4 {[%emt 0:00:08]} 79. Kf4 {[%emt 0:00:28]} Bd7 {[%emt 0:00:19]} 80. Ne2 {[%emt 0:00:16]} Bc8 {[%emt 0:00:36]} 81. Nc3 {[%emt 0:00:06]} Be6 {[%emt 0:00:43]} 82. Ne4+ {[%emt 0:00:12]} Kg6 {[%emt 0:00:04]} 83. Ke5 {[%emt 0:00:06]} Bg4 {[%emt 0:00:13]} 84. Nc5 {[%emt 0:00:16]} Bc8 {[%emt 0:01:07]} 85. Kf4 {[%emt 0:02:29]} Kf6 {[%emt 0:00:16]} 86. Ne4+ {[%emt 0:00:18]} Kg6 {[%emt 0:00:04]} 87. Nd6 {[%emt 0:00:09]} Be6 {[%emt 0:00:26]} 88. Ke4 {[%emt 0:00:17]} Bg4 {[%emt 0:00:48]} 89. Ke5 {[%emt 0:00:07]} Bd7 {[%emt 0:00:23]} 90. Ne4 {[%emt 0:00:07]} Bg4 {[%emt 0:00:14]} 91. Nf6 {[%emt 0:00:14]} Bc8 {[%emt 0:00:51]} 92. Nd5 {[%emt 0:00:07]} Bg4 {[%emt 0:00:10]} 93. Nf4+ {[%emt 0:01:11]} Kf7 {[%emt 0:00:07]} 94. Kd5 {[%emt 0:00:07]} Bf3+ {[%emt 0:00:13]} 95. Kd4 {[%emt 0:00:12]} Kf6 {[%emt 0:11:16]} 96. Ke3 {[%emt 0:00:13]} Bd1 {[%emt 0:00:00]} 97. Ne2 {[%emt 0:00:17]} Bxe2 {[%emt 0:00:00]} 98. Kxe2 {[%emt 0:00:04]} Ke5 {[%emt 0:00:00]} 99. Ke3 {[%emt 0:01:15]} Kf5 {[%emt 0:00:00]} 100. Kf3 {[%emt 0:00:08]} Ke5 {[%emt 0:00:00]} 101. g4 {[%emt 0:00:14]} hxg4+ {[%emt 0:00:00]} 102. Kxg4 {[%emt 0:00:03]} Kf6 {[%emt 0:00:00]} 1/2-1/2

[Event "12th KIIT International 2019"]
[Site "Odisha"]
[Date "2019.06.07"]
[Round "10.15"]
[White "Das, Sayantan"]
[Black "Arpita, Mukherjee"]
[Result "1-0"]
[ECO "A28"]
[WhiteElo "2419"]
[BlackElo "2196"]
[Annotator "ChessBase"]
[PlyCount "139"]
[EventDate "2019.05.31"]
[EventType "swiss"]
[EventCountry "IND"]
[SourceTitle "playchess.com"]
[Source "ChessBase"]
[SourceQuality "1"]
[TimeControl "5400+30"]

1. c4 {[%emt 0:00:00]} e5 {[%emt 0:00:34]} 2. Nc3 {[%emt 0:01:31]} Nf6 {[%emt 0:00:17]} 3. Nf3 {[%emt 0:00:22]} Nc6 {[%emt 0:00:20]} 4. e3 {[%emt 0:00:15]} d5 {[%emt 0:00:28]} 5. cxd5 {[%emt 0:00:59]} Nxd5 {[%emt 0:00:12]} 6. Bb5 {[%emt 0:01:31]} Nxc3 {[%emt 0:03:17]} 7. bxc3 {[%emt 0:01:19]} Bd6 {[%emt 0:02:25]} 8. d4 {[%emt 0:04:33]} exd4 {[%emt 0:02:45]} 9. Nxd4 {[%emt 0:08:06]} Bd7 {[%emt 0:04:12]} 10. Nxc6 {[%emt 0:01:14]} bxc6 {[%emt 0:00:51]} 11. Bd3 {[%emt 0:01:55]} Qe7 {[%emt 0:04:39]} 12. Qc2 {[%emt 0:01:52]} Qh4 {[%emt 0:05:46]} 13. h3 {[%emt 0:08:58]} O-O {[%emt 0:00:25]} 14. O-O {[%emt 0:01:09]} Rfe8 {[%emt 0:04:11]} 15. Rb1 {[%emt 0:13:43]} a5 {[%emt 0:15:34]} 16. c4 {[%emt 0:03:01]} Qh5 {[%emt 0:03:49]} 17. f4 {[%emt 0:02:13]} Bc5 {[%emt 0:03:08]} 18. Rf3 {[%emt 0:00:49]} f5 {[%emt 0:19:32]} 19. Rg3 {[%emt 0:08:10]} Re7 {[%emt 0:02:43]} 20. Kh2 {[%emt 0:04:32]} h6 {[%emt 0:05:35]} 21. Rb7 {[%emt 0:14:16]} Bc8 {[%emt 0:04:30]} 22. Rb3 {[%emt 0:02:22]} a4 {[%emt 0:01:45]} 23. Rb1 {[%emt 0:00:09]} a3 {[%emt 0:00:35]} 24. Rb3 {[%emt 0:04:40]} Bd7 {[%emt 0:06:32]} 25. Qc3 {[%emt 0:01:53]} Qe8 {[%emt 0:00:52]} 26. Be2 {[%emt 0:01:50]} Qf8 {[%emt 0:04:36]} 27. Bxa3 {[%emt 0:01:10]} Bxa3 {[%emt 0:00:36]} 28. Rxa3 {[%emt 0:00:02]} Rxa3 {[%emt 0:00:25]} 29. Qxa3 {[%emt 0:00:02]} Re8 {[%emt 0:00:08]} 30. Qc3 {[%emt 0:03:41]} Ra8 {[%emt 0:00:28]} 31. c5 {[%emt 0:00:46]} Be6 {[%emt 0:01:30]} 32. a3 {[%emt 0:00:12]} Kh7 {[%emt 0:00:37]} 33. Qe5 {[%emt 0:01:42]} Bd5 {[%emt 0:02:32]} 34. Bd3 {[%emt 0:00:47]} g6 {[%emt 0:00:33]} 35. Qxc7+ {[%emt 0:00:56]} Qf7 {[%emt 0:00:27]} 36. Qxf7+ {[%emt 0:00:27]} Bxf7 {[%emt 0:00:01]} 37. e4 {[%emt 0:00:10]} fxe4 {[%emt 0:00:52]} 38. Bxe4 {[%emt 0:00:06]} Ra4 {[%emt 0:00:41]} 39. Bxc6 {[%emt 0:00:55]} Rc4 {[%emt 0:00:02]} 40. Bd7 {[%emt 0:00:57]} Rxc5 {[%emt 0:00:12]} 41. Rd3 {[%emt 0:00:12]} Kg7 {[%emt 0:00:59]} 42. a4 {[%emt 0:00:47]} Bd5 {[%emt 0:00:26]} 43. Bg4 {[%emt 0:02:28]} Bc6 {[%emt 0:00:39]} 44. Bd7 {[%emt 0:01:02]} Bd5 {[%emt 0:00:13]} 45. Rd2 {[%emt 0:00:21]} h5 {[%emt 0:00:29]} 46. Kg3 {[%emt 0:00:47]} Kf6 {[%emt 0:00:45]} 47. Bb5 {[%emt 0:00:38]} Be4 {[%emt 0:00:36]} 48. Rd6+ {[%emt 0:01:35]} Ke7 {[%emt 0:00:38]} 49. Rd2 {[%emt 0:00:20]} Kf6 {[%emt 0:00:13]} 50. Kf2 {[%emt 0:00:32]} h4 {[%emt 0:00:18]} 51. Ke3 {[%emt 0:00:24]} Ba8 {[%emt 0:00:15]} 52. Rd6+ {[%emt 0:01:14]} Kf7 {[%emt 0:00:21]} 53. Rd2 {[%emt 0:00:45]} Kf6 {[%emt 0:00:29]} 54. Bd3 {[%emt 0:00:22]} Bc6 {[%emt 0:00:46]} 55. Ra2 {[%emt 0:01:00]} Ra5 {[%emt 0:00:29]} 56. Rb2 {[%emt 0:00:29]} Kf7 {[%emt 0:01:13]} 57. Bb5 {[%emt 0:00:25]} Ba8 {[%emt 0:00:26]} 58. Kd4 {[%emt 0:01:08]} Ra7 {[%emt 0:00:06]} 59. Re2 {[%emt 0:00:48]} Kf6 {[%emt 0:00:28]} 60. Kc5 {[%emt 0:00:38]} g5 {[%emt 0:00:13]} 61. fxg5+ {[%emt 0:00:16]} Kxg5 {[%emt 0:00:07]} 62. Re8 {[%emt 0:00:20]} Kf4 {[%emt 0:01:31]} 63. Kb6 {[%emt 0:00:16]} Rb7+ {[%emt 0:00:11]} 64. Ka6 {[%emt 0:00:07]} Rxb5 {[%emt 0:00:12]} 65. Rxa8 {[%emt 0:01:40]} Rg5 {[%emt 0:00:17]} 66. Rh8 {[%emt 0:00:19]} Kg3 {[%emt 0:00:04]} 67. a5 {[%emt 0:00:10]} Rg6+ {[%emt 0:00:18]} 68. Kb5 {[%emt 0:00:12]} Rg5+ {[%emt 0:00:07]} 69. Ka4 {[%emt 0:00:25]} Rg6 {[%emt 0:00:36]} 70. Kb4 {[%emt 0:00:11]} 1-0